{"text_format":"3","workbook":"xlsx","n_sheets":1,"sheets":["PRICING SCHEDULE NORTH WEST PRO"],"not_rendered":{"images":1,"defined_names":2},"read":"whole","date_system":"1900"}

{"sheet":"PRICING SCHEDULE NORTH WEST PRO","index":0,"n_rows":426,"n_cols":7,"rows_kept":426,"merged":[[2,1,2,2],[3,1,3,2],[4,1,4,2],[13,4,13,6],[18,0,22,0],[23,0,23,6],[25,0,28,0],[29,1,29,6],[31,0,32,0],[33,1,33,6],[36,1,36,6],[39,1,39,6],[42,1,42,6],[45,0,46,0],[47,2,47,6],[50,2,50,6],[53,2,53,6],[56,2,56,6],[59,0,82,0],[60,2,60,6],[63,2,63,6],[66,2,66,6],[69,2,69,6],[72,2,72,6],[75,2,75,6],[78,2,78,6],[82,2,82,6],[85,0,86,0],[87,2,87,6],[89,0,90,0],[91,2,91,6],[93,0,94,0],[95,2,95,6],[98,2,98,6],[101,0,102,0],[103,2,103,6],[105,0,108,0],[109,2,109,6],[112,0,118,0],[119,2,119,6],[121,0,122,0],[127,2,127,6],[130,2,130,6],[133,2,133,6],[136,0,137,0],[137,1,137,6],[140,2,140,6],[143,2,143,6],[146,0,150,0],[151,2,151,6],[154,2,154,6],[157,2,157,6],[160,0,164,0],[165,2,165,6],[168,2,168,6],[171,2,171,6],[174,2,174,6],[177,2,177,6],[181,2,181,6],[184,2,184,6],[187,0,188,0],[189,2,189,6],[191,0,192,0],[193,2,193,6],[196,2,196,6],[199,2,199,6],[202,2,202,6],[205,0,206,0],[207,2,207,6],[210,2,210,6],[214,2,214,6],[217,2,217,6],[221,2,221,6],[225,2,225,6],[228,2,228,6],[231,2,231,6],[235,2,235,6],[237,0,240,0],[241,2,241,6],[244,2,244,6],[248,2,248,6],[250,0,251,0],[252,2,252,6],[255,2,255,6],[257,0,258,0],[259,2,259,6],[262,0,267,0],[268,2,268,6],[270,0,272,0],[273,2,273,6],[278,2,278,6],[282,2,282,6],[284,0,285,0],[286,2,286,6],[289,2,289,6],[292,2,292,6],[295,2,295,6],[305,2,305,6],[307,0,308,0],[309,2,309,6],[313,2,313,6],[315,0,316,0],[317,2,317,6],[319,0,320,0],[321,2,321,6],[323,0,324,0],[325,2,325,6],[328,2,328,6],[331,0,334,0],[335,2,335,6],[338,0,340,0],[341,2,341,6],[345,2,345,6],[348,2,348,6],[351,2,351,6],[354,2,354,6],[357,2,357,6],[359,0,364,0],[365,2,365,6],[368,0,373,0],[374,2,374,6],[377,2,377,6],[381,2,381,6],[387,0,392,0],[393,2,393,6],[395,0,397,0],[400,0,403,0],[404,2,404,6],[407,2,407,6],[409,0,410,0],[411,2,411,6],[414,2,414,6],[420,0,425,0],[422,1,425,1],[422,2,425,2],[422,3,422,4],[422,5,422,6],[423,3,423,4],[423,5,423,6],[424,3,424,4],[424,5,424,6],[425,3,425,4],[425,5,425,6]]}
[null,null,"          SUPPLY CHAIN MANAGEMENT"]
[null,null,"              Pricing schedule"]
["RFB No","RFB 08 2025"]
["RFB Title","APPOINTMENT OF A SERVICE PROVIDER FOR THE MANUFACTURING, SUPPLY, DELIVERY AND INSTALLATION OF OFFICE FURNITURE: NORTH WEST PROVINCIAL OFFICE"]
["Bidder Name "]
[]
["1. INSTRUCTION FOR COMPLETING THE PRICING SCHEDULE"]
["(a)  THIS PRICING SCHEDULE MUST BE SUBMITTED SEPARATELY FROM THE TECHNICAL RESPONSE, failing which the BID may be DISQUALIFIED."]
["(b)  Bidder must complete/enter YELLOW cells only"]
["(c)  Unit and Line prices must be VAT EXCLUSIVE and in South African Rand (ZAR) currency."]
["(d) The price must include all cost to deliver the goods or render the service, including all applicable taxes, duty fees, logistics/delivery, storage, labour, overtime and subsistance and travel"]
["(e) Bidders must attached a separate bill of quantities linked to the statement of work totaling to their bid price in the letterhead of the bidder"]
[]
[]
["Office No","Item No","Goods/Service description","Unit of measure","Qty ","Unit Price \n(Excl VAT)","Total Line Price (excluding VAT)"]
[null,null,"MANUFACTURE, SUPPLY, DELIVER & INSTALLATION"]
["1.","1.","NORTH WEST PROVINCIAL OFFICE"]
[null,"   1.","DIRECTOR: LEGAL"]
[null,"1.1","L-shaped-in d ed executive desk with (desk pad) Bonded Leather inlay, pedestal with 3 lockable drawers on both sides, with a build in top-drawer pencil tray, with handles (mahogany vaneer) desk:1800(l)x 950(w) x 800(h).","Each",1,null,{"$f":"E19*F19","v":{"v":0,"d":"R0.00"}}]
[null,"1.2","Wall unit: 4 solid door base unit; 2 glass doors and open shelves top unit in dark mahogany veneer 1800l x 420d x 2000h.","Each",1,null,{"$f":"E20*F20","v":{"v":0,"d":"R0.00"}}]
[null,"1.3","Four drawer lockable wooden cabinet in mahogany veneers, 465mm w x 600mm d x 1300mm h, 465mm w x 600mm d x 1300mm.","Each",1,null,{"$f":"E21*F21","v":{"v":0,"d":"R0.00"}}]
[null,"1.4","High back ergonomic chair with adjustable lumbar support, Black mesh fabric, Adjustable seat and armrest, Five-star base and gas height adjustment","Each",1,null,{"v":0,"d":"R0.00"}]
[null,"1.5","Visitors ergonomic chair, Black mesh fabric, with armrest","Each",3,null,{"v":0,"d":"R0.00"}]
[]
["    2.","2.","DEPUTY DIRECTOR: HRM"]
[null,"2.1","Office desk in mahogany veneer with three lockable drawers on one side. 150mm (l) x 75mm (w) x 71 mm (h). ","Each",5,null,{"$f":"E26*F26","v":{"v":0,"d":"R0.00"}}]
[null,"2.1","Four drawer lockable wooden cabinet in mahogany veneers, 465mm w x 600mm d x 1300mm h, 465mm w x 600mm d x 1300mm h.","Each",1,null,{"$f":"E27*F27","v":{"v":0,"d":"R0.00"}}]
[null,"2.3","Wall unit: 4 solid door base unit; 2 glass doors and open shelves top unit in dark mahogany veneer 1800l x 420d x 2000h","Each",1,null,{"v":0,"d":"R0.00"}]
[null,"2.4","Free standing credenza with one hinged lockable door 60 cm wide (lhs) with one shelf, three lockable 40cm wide drawers (middle), top draw must be a pull-out keyboard drawer.  open 20cm wide filing space (rhs) in mahogany veneer. 1200mm (w) x 800 mm (h) x 50 cm (depth).","Each",1,null,{"v":0,"d":"R0.00"}]
[]
["     3.","3.","LEGAL ADMIN OFFICER"]
[null,"3.1","L combination desk with four lockable drawers in mahogany veneer. 1800 (l) x 950 (w) x 800(h).","Each",1,null,{"v":0,"d":"R0.00"}]
[null,"3.2","Four drawer lockable wooden cabinet in oak veneer, 465mm w x 600mm d x 1300mm h, 465mm w x 600mm d x 1300mm h.  ","Each",3,null,{"v":0,"d":"R0.00"}]
[]
["4.","4.","VARIOUS OFFICES"]
[null,"4.1","Office desk in mahogany veneer with three lockable drawers on one side. 150mm (l) x 75mm (w) x 71 mm (h). ","Each",12,null,{"v":0,"d":"R0.00"}]
[]
["5.","5.","HUMAN RESOURCES"]
[null,"5.1","6-way oak veneer cluster desk/workstation with 3 drawers on all the desks for each official.","Each",1,null,{"v":0,"d":"R0.00"}]
[]
["     6.","6.","LEGAL ADMIN OFFICER"]
[null,"6.1","High back ergonomic chair with adjustable lumbar support, Black mesh fabric, Adjustable seat and armrest, Five-star base and gas height adjustment.","Each",1,null,{"v":0,"d":"R0.00"}]
[]
["     2.","2.","MAGISTRATE COURT BLOEMHOF"]
[null,1,"MOBILE COURT ROOM & REGIONAL COURT ROOM"]
[null,"1.1","Medium back hydrophobic fabric chair, (black) wooden mahogany veneer armrest, swivel and tiltwith pu castor.","Each",22,null,{"v":0,"d":"R0.00"}]
[null,"1.2","Four-seater court room bench with back, wood 2000mm x 450mm","Each",3,null,{"v":0,"d":"R0.00"}]
[]
[null,"    2.","VARIOUS OFFICES"]
[null,"2.1","High back ergonomic chair with adjustable lumbar support, Black mesh fabric, Adjustable seat and armrest, Five-star base and gas height adjustment.","Each",11,null,{"v":0,"d":"R0.00"}]
[]
[null,"3.","PASSAGE WAY"]
[null,"3.1","4-seater heavy duty perforated steel bench (with back) (silver).     ","Each",3,null,{"v":0,"d":"R0.00"}]
[]
[null,"4.","VARIOUS OFFICES"]
[null,"4.1","Visitors ergonomic chair, Black mesh fabric, with armrest","Each",5,null,{"v":0,"d":"R0.00"}]
[]
["     3.","3.","MAGISTRATE COURT SCHWEIZER RENEKE"]
[null,"1.","ADMIN CLERKS"]
[null,"1.1","High back ergonomic chair with adjustable lumbar support, Black mesh fabric, Adjustable seat and armrest, Five-star base and gas height adjustment.","Each",5,null,{"v":0,"d":"R0.00"}]
[]
[null,"2.","ADMIN CLERK"]
[null,"2.1","Four drawer lockable wooden cabinet in oak veneer, 465mm w x 600mm d x 1300mm h, 465mm w x 600mm d x 1300mm h.  ","Each",1,null,{"v":0,"d":"R0.00"}]
[]
[null,"3.","ADMIN CLERK"]
[null,"3.1","Office desk with three lockable drawers on both sides in mahogany veneer 1800mml x950mm w x 800mm h: Admin Clerks.","Each",1,null,{"v":0,"d":"R0.00"}]
[]
[null,"4.","MAINTENANCE CLERK"]
[null,"4.1","30 Compartment pigeon hole – wood oak veneer 900mm (width) x 360mm (depth) x 1500mm (height).","Each",1,null,{"v":0,"d":"R0.00"}]
[]
[null,"5.","CASH HALL CLERK"]
[null,"5.1","Four drawer lockable wooden cabinet in oak veneer, 465mm w x 600mm d x 1300mm h, 465mm w x 600mm d x 1300mm h.  ","Each",2,null,{"v":0,"d":"R0.00"}]
[]
[null,"6.","CIVIL CLERK"]
[null,"6.1","Cupboard stationery steel 1800H x 900 W x 450D.","Each",2,null,{"$f":"E75*F75","v":{"v":0,"d":"R0.00"}}]
[]
[null,"7.","CIVIL CLERK"]
[null,"7.1","30 Compartment pigeon hole – wood oak veneer 900mm (width) x 360mm (depth) x 1500mm (height).","Each",2,null,{"$f":"E78*F78","v":{"v":0,"d":"R0.00"}}]
[]
[null,"8.","COURT MANAGER"]
[null,"8.1","Office desk in mahogany veneer with three lockable drawers on one side. 150mm (l) x 75mm (w) x 71 mm (h).","Each",1,null,{"$f":"E81*F81","v":{"v":0,"d":"R0.00"}}]
[null,"8.2","Wall unit: 4 solid door base unit; 2 glass doors and open shelves top unit in dark mahogany veneer 1800l x 420d x 2000h.","Each",1,null,{"$f":"E82*F82","v":{"v":0,"d":"R0.00"}}]
[]
["4.","4.","MAGISTRATE COURT STILFONTEIN"]
[null,"1.","DISTRICT MAGISTRATE"]
[null,"1.1","High back ergonomic chair with adjustable lumbar support with headrest, Black mesh fabric, Adjustable seat and armrest, Five-star base and gas height adjustment.","Each",1,null,{"$f":"E86*F86","v":{"v":0,"d":"R0.00"}}]
[null,"1.2","Visitors ergonomic chair, Black mesh fabric, with armrest.","Each",2,null,{"$f":"E87*F87","v":{"v":0,"d":"R0.00"}}]
[]
[null,"2.","REGIONAL COURT MAGISTRATE"]
[null,"2.1","High back ergonomic chair with adjustable lumbar support with headrest, Black mesh fabric, Adjustable seat and armrest, Five-star base and gas height adjustment.","Each",1,null,{"$f":"E90*F90","v":{"v":0,"d":"R0.00"}}]
[null,"2.1","Visitors ergonomic chair, Black mesh fabric, with armrest.","Each",2,null,{"v":0,"d":"R0.00"}]
[]
[null,"3.","COURT MANAGER"]
[null,"3.1","High back ergonomic chair with adjustable lumbar support, Black mesh fabric, Adjustable seat and armrest, Five star base and gas height adjustment.","Each",1,null,{"$f":"E94*F94","v":{"v":0,"d":"R0.00"}}]
[null,"3.2","Visitors ergonomic chair, Black mesh fabric, with armrest.","Each",2,null,{"v":0,"d":"R0.00"}]
[]
[null,"4.","MAINTENANCE OFFICER"]
[null,"4.1","High back ergonomic chair with adjustable lumbar support, Black mesh fabric, Adjustable seat and armrest, Five star base and gas height adjustment.","Each",1,null,{"$f":"E98*F98","v":{"v":0,"d":"R0.00"}}]
[]
["5.","5.","MAGISTRATE COURT ORKNEY"]
[null,"1.","COURT MANAGER"]
[null,"1.1","Visitors ergonomic chair, Black mesh fabric, with armrest.","Each",3,null,{"$f":"E102*F102","v":{"v":0,"d":"R0.00"}}]
[null,"1.2","High back ergonomic chair with adjustable lumbar support, Black mesh fabric, Adjustable seat and armrest, Five star base and gas height adjustment.","Each",1,null,{"v":0,"d":"R0.00"}]
[]
[null,"2.","VARIOUS OFFICES"]
[null,"2.1","High back ergonomic chair with adjustable lumbar support, Black mesh fabric, Adjustable seat and armrest, Five star base and gas height adjustment","Each",15,null,{"$f":"E106*F106","v":{"v":0,"d":"R0.00"}}]
[null,"2.2","Visitors ergonomic chair, Black mesh fabric, with armrest","Each",8,null,{"$f":"E107*F107","v":{"v":0,"d":"R0.00"}}]
[null,"2.3","Four drawer lockable steel cabinets, 465mm w x 600mm d x 1300mm h, 465mm w x 600mm d x 1300mm h.","Each",20,null,{"$f":"E108*F108","v":{"v":0,"d":"R0.00"}}]
[null,"2.4","30 Compartment pigeon hole – wood oak veneer 900mm (width) x 360mm (depth) x 1500mm (height).","Each",8,null,{"$f":"E109*F109","v":{"v":0,"d":"R0.00"}}]
[]
["6.","6.","MAGISTRATE COURT DITSOBOTLA "]
[null,"1.","DISTRICT MAGISTRATE"]
[null,"1.1","L-shaped executive desk with (desk pad) Bonded Leather inlay, pedestals with 3 lockable drawers on both sides, with a built-in top-drawer pencil tray, with handles (mahogany veneer finish) 1800mm (l) x 950mm(w) x800mm (h). ","Each",1,null,{"$f":"E113*F113","v":{"v":0,"d":"R0.00"}}]
[null,"1.2","High back ergonomic chair with adjustable lumbar support with headrest, Black mesh fabric, Adjustable seat and armrest, Five-star base and gas height adjustment. (Periodical court).","Each",3,null,{"v":0,"d":"R0.00"}]
[null,"1.3","Wall unit: 4 solid door base unit; 2 glass doors and open shelves top unit in dark mahogany veneer 1800l x 420d x 2000h. ","Each",1,null,{"$f":"E115*F115","v":{"v":0,"d":"R0.00"}}]
[null,"1.4","Couch 2-Seater: Fabric black – fixed seat and back.","Each",1,null,{"$f":"E116*F116","v":{"v":0,"d":"R0.00"}}]
[null,"1.5","Letter tray-Oak veneer 75Hx 290Wx 360D.","Each",3,null,{"$f":"E117*F117","v":{"v":0,"d":"R0.00"}}]
[null,"1.6","Visitors ergonomic chair, Black mesh fabric, with armrest.","Each",3,null,{"$f":"E118*F118","v":{"v":0,"d":"R0.00"}}]
[null,"1.7","Four drawer lockable wooden cabinet in- oak,465mm w x 600mm d x 1300mm h, 465mm w x 600mm d x1300mm h. ","Each",1,null,{"$f":"E119*F119","v":{"v":0,"d":"R0.00"}}]
[]
[null,"2.","COURT ROOM"]
[null,"2.1","Medium back fabric chair, (black) with armrest, swivel and tilt with pu castor.","Each",24,null,{"$f":"E122*F122","v":{"v":0,"d":"R0.00"}}]
[null,"2.2","Court room Attorneys table 1420mm (l) x 700mm (w) x 700mm (h) – oak veneer.","Each",3,null,{"$f":"E123*F123","v":{"v":0,"d":"R0.00"}}]
[]
["7.","7.","MAGISTRATE COURT COLIGNY"]
[null,"1.","WAITING AREA"]
[null,"1.1","4-seater heavy duty perforated steel bench (with back) (silver).   ","Each",4,null,{"$f":"E127*F127","v":{"v":0,"d":"R0.00"}}]
[]
[null,"2.","COURT MANAGER"]
[null,"2.1","High back ergonomic chair with adjustable lumbar support, Black mesh fabric, Adjustable seat and armrest, Five star base and gas height adjustment","Each",1,null,{"$f":"E130*F130","v":{"v":0,"d":"R0.00"}}]
[]
[null,"3.","CASH HALL"]
[null,"31.","5 Tier correspondence rack upright – oak veneer – to fit A4 paper. ","Each",2,null,{"$f":"E133*F133","v":{"v":0,"d":"R0.00"}}]
[]
["8.","8.","MAGISTRATE COURT GROOT MARICO "]
[null,"1.","MAGISTRATE "]
[null,"1.1","Special chair: Orthopaedic chair                                • Adjustable lumbar support to maintain a healthy spine alignment                                                            • A breathable, cushioned seat and backrest to reduce pressure points                                               • Adjustable armrests to support arms and reduce strain on hips and shoulders                    • A seat height adjustment to allow sitting comfortably with feet flat on the floor or on a footrest.                                                                                      ","Each",2,null,{"$f":"E137*F137","v":{"v":0,"d":"R0.00"}}]
[]
[null,"2.","OFFICE MANAGER"]
[null,"2.1","Office desk in mahogany veneer with three lockable drawers on one side. 150mm (l) x 75mm (w) x 71 mm (h). ","Each",1,null,{"$f":"E140*F140","v":{"v":0,"d":"R0.00"}}]
[]
[null,"3.","COURT ROOM "]
[null,"3.1","Court upright standing podium 1085mm(h) x 65mm (w) 500mm (l)","Each",2,null,{"$f":"E143*F143","v":{"v":0,"d":"R0.00"}}]
[]
["9.","9.","MAGISTRATE COURT LEHURUTSHE "]
[null,"1.","ADMIN CLERKS"]
[null,"1.1","Visitors ergonomic chair, Black mesh fabric, with armrest.","Each",3,null,{"$f":"E147*F147","v":{"v":0,"d":"R0.00"}}]
[null,"1.2","High back ergonomic chair with adjustable lumbar support, Black mesh fabric, Adjustable seat and armrest, Five star base and gas height adjustment.","Each",2,null,{"$f":"E148*F148","v":{"v":0,"d":"R0.00"}}]
[null,"1.3","Standard Mobile pedestal 3-drawers with pull-out pen & pencil tray, central locking- oak veneer 400(W) x 550(D) x 590 (H).","Each",1,null,{"$f":"E149*F149","v":{"v":0,"d":"R0.00"}}]
[null,"1.4","Four drawer lockable steel cabinets, 465(W) x 600(D) x 1300 (H).","Each",10,null,{"$f":"E150*F150","v":{"v":0,"d":"R0.00"}}]
[null,"1.5","Free standing credenza in oak veneer – sliding door 900w x 550D x 700H, lockable and includes shelf.  ","Each",1,null,{"$f":"E151*F151","v":{"v":0,"d":"R0.00"}}]
[]
[null,"2.","COURT ROOM"]
[null,"2.1","Medium back fabric chair, (black) with armrest, swivel and tilt with pu castor.","Each",5,null,{"$f":"E154*F154","v":{"v":0,"d":"R0.00"}}]
[]
[null,"3.","SENIOR COURT INTERPRETER"]
[null,"3.1","Standard Mobile pedestal 3-drawers with pull-out pen & pencil tray, central locking- oak veneer 400(W) x 550(D) x 590 (H).","Each",1,null,{"$f":"E157*F157","v":{"v":0,"d":"R0.00"}}]
[]
["10.","10.","MAGISTRATE COURT DELAREYVILLE"]
[null,"1.","DISTRICT MAGISTRATE"]
[null,"1.1","L-shaped-in d ed executive desk with (desk pad) Bonded Leather inlay, pedestal with 3 lockable drawers on both sides, with a build in top-drawer pencil tray, with handles (mahogany vaneer) desk:1800(l)x 950(w) x 800(h).","Each",1,null,{"$f":"E161*F161","v":{"v":0,"d":"R0.00"}}]
[null,"1.2","High back ergonomic chair with adjustable lumbar support with headrest, Black mesh fabric, Adjustable seat and armrest, Five-star base and gas height adjustment.","Each",3,null,{"$f":"E162*F162","v":{"v":0,"d":"R0.00"}}]
[null,"1.3","Visitors ergonomic chair, Black mesh fabric, with armrest","Each",2,null,{"$f":"E163*F163","v":{"v":0,"d":"R0.00"}}]
[null,"1.4","Wall unit: 4 solid door base unit; 2 glass doors and open shelves top unit in dark mahogany veneer 1800l x 420d x 2000h wall unit with glass doors.","Each",1,null,{"v":0,"d":"R0.00"}]
[null,"1.5","Cabinet filing 4 drawers wood, mahogany veneer.","Each",1,null,{"$f":"E165*F165","v":{"v":0,"d":"R0.00"}}]
[]
[null,"2.","MAINTENANCE CLERK"]
[null,"2.1","Four drawer lockable steel cabinets, 465(W) x 600(D) x 1300 (H).","Each",2,null,{"$f":"E168*F168","v":{"v":0,"d":"R0.00"}}]
[]
[null,"3.","WAITING AREA"]
[null,"3.1","4-seater heavy duty perforated steel bench (with back) (silver).   ","Each",5,null,{"$f":"E171*F171","v":{"v":0,"d":"R0.00"}}]
[]
[null,"4.","ADMIN CLERK "]
[null,"4.1","Office desk with three drawers table size (1800 x 750mm) oak veneer.","Each",1,null,{"$f":"E174*F174","v":{"v":0,"d":"R0.00"}}]
[]
[null,"5.","COURT MANAGER "]
[null,"5.1","Free standing credenza in oak veneer – sliding door 900w x 550D x 700H, lockable and includes shelf.  ","Each",1,null,{"$f":"E177*F177","v":{"v":0,"d":"R0.00"}}]
[]
["11.","11.","MAGISTRATE COURT KOSTER"]
[null,"1.","DISTRICT MAGISTRATE"]
[null,"1.1","L-shaped executive desk with (desk pad) Bonded Leather in lay, pedestals with 3 lockable drawers on both sides, with a built-in top-drawer pencil tray, with handles (mahogany veneer finish) desk: 1800mm (l) x 950mm (w) x 800mm(h).","Each",1,null,{"$f":"E181*F181","v":{"v":0,"d":"R0.00"}}]
[]
[null,"2.","CASH HALL"]
[null,"2.1","High back ergonomic chair with adjustable lumbar support, Black mesh fabric, Adjustable seat and armrest, Five star base and gas height adjustment.","Each",3,null,{"$f":"E184*F184","v":{"v":0,"d":"R0.00"}}]
[]
[null,"12.","MAGISTRATE COURT ATAMELANG"]
[null,"1.","DISTRICT AND REGIONAL MAGISTRATE"]
[null,"1.1","High back ergonomic chair with adjustable lumbar support with headrest, Black mesh fabric, Adjustable seat and armrest, Five-star base and gas height adjustment","Each",2,null,{"$f":"E188*F188","v":{"v":0,"d":"R0.00"}}]
[null,"1.2","Visitors ergonomic chair, Black mesh fabric, with armrest","Each",2,null,{"$f":"E189*F189","v":{"v":0,"d":"R0.00"}}]
[]
[null,"2.","BOARDROOM"]
[null,"2.1","Boardroom table 3200 x 1500 (10 seater), oak.","Each",1,null,{"$f":"E192*F192","v":{"v":0,"d":"R0.00"}}]
[null,"2.1","High back ergonomic chair with adjustable lumbar support, Black mesh fabric, Adjustable seat and armrest, Five star base and gas height adjustment","Each",10,null,{"v":0,"d":"R0.00"}]
[]
[null,"3.","WAITING AREA"]
[null,"3.1","4-seater heavy duty perforated steel bench (with back)  (silver).   ","Each",8,null,{"$f":"E196*F196","v":{"v":0,"d":"R0.00"}}]
[]
[null,"4.","MAINTENANCE AND CASH HALL"]
[null,"4.1","Four drawer lockable steel cabinets, 465mm w x 600mm d x 1300mm h.","Each",4,null,{"$f":"E199*F199","v":{"v":0,"d":"R0.00"}}]
[]
[null,"5.","CASH HALL"]
[null,"5.1","Standard Mobile pedestal 3-drawers with pull-out pen & pencil tray, central locking- oak veneer 400(W) x 550(D) x 590 (H).","Each",3,null,{"$f":"E202*F202","v":{"v":0,"d":"R0.00"}}]
[]
["13.","13.","MAGISTRATE COURT GANYESA"]
[null,"1.","DISTRICT MAGISTRATES"]
[null,"1.1","L-shaped executive desk with (desk pad) Bonded Leather in lay, pedestals with 3 lockable drawers on both sides, with a built-in top-drawer pencil tray, with handles (mahogany veneer finish) desk: 1600mm (l) x 950mm (w) x 800mm(h)","Each",2,null,{"$f":"E206*F206","v":{"v":0,"d":"R0.00"}}]
[null,"1.2","Wooden lockable 4 drawer filing 470 x 550 x 1300(h), mahogany veneer.","Each",2,null,{"v":0,"d":"R0.00"}]
[]
[null,"2.","VARIOUS OFFICES - ADMIN CLERKS AND MAINTENANCE INVESTIGATOR"]
[null,"2.1","L-combination desk with 3 lockable drawers 700 x 1400 x 800 (h) (l extension 700 x 580 x 800 (h).","Each",6,null,{"$f":"E210*F210","v":{"v":0,"d":"R0.00"}}]
[]
[null,"14.","MAGISTRATE COURT SWARTRUGGENS"]
[null,"1.","MAINTENCE & DV OFFICE"]
[null,"1.1","330 Compartment pigeon hole – wood oak veneer 900mm (width) x 360mm (depth) x 1500mm (height).","Each",1,null,{"$f":"E214*F214","v":{"v":0,"d":"R0.00"}}]
[]
[null,"2.","COURT ROOM"]
[null,"2.1","Four-seater court room bench with back, wood 2000mm x 450mm.","Each",10,null,{"$f":"E217*F217","v":{"v":0,"d":"R0.00"}}]
[]
[null,"15.","MAGISTRATE COURT VRYBURG"]
[null,"1.","CASH HALL "]
[null,"1.1","4 Way cluster desk 1600mm (l) x 1200mm (w) x 800mm (h) with pencil tray, two standard drawers and one deep filer on each side of the desk (all lockable drawers) in mahogany veneer. 500 mm frosted perspex divider screen. ","Each",1,null,{"$f":"E221*F221","v":{"v":0,"d":"R0.00"}}]
[]
[null,"2.","COURTROOM MAGISTRATE BENCH"]
[null,"2.1","High back ergonomic chair with adjustable lumbar support with headrest, Black mesh fabric, Adjustable seat and armrest, Five-star base and gas height adjustment.","Each",4,null,{"$f":"E224*F224","v":{"v":0,"d":"R0.00"}}]
[null,"2.2","Wooden Flag stand indoor with a round base – oak veneer:  Pole Size: 2500mm high x 34mm diameter.","Each",5,null,{"v":0,"d":"R0.00"}]
[]
[null,"3.","COURT MANAGER"]
[null,"3.1","High back ergonomic chair with adjustable lumbar support, Black mesh fabric, Adjustable seat and armrest, Five star base and gas height adjustment.","Each",1,null,{"$f":"E228*F228","v":{"v":0,"d":"R0.00"}}]
[]
[null,"4.","CHIEF MAGISTRATE"]
[null,"4.1","4-Seater round table, 1500mm (c) x 750mm (h) in mahogany veneer.","Each",1,null,{"$f":"E231*F231","v":{"v":0,"d":"R0.00"}}]
[]
["16.","16.","MAGISTRATE COURT MADIKWE"]
[null,"1.","MAGISTRATE & INTERMEDIARIES OFFICE"]
[null,"1.1","3-Seater black fabric sofa/couch.","Each",2,null,{"$f":"E235*F235","v":{"v":0,"d":"R0.00"}}]
[]
[null,"2.","MAGISTRATE OFFICES"]
[null,"2.1","L-shaped executive desk with (desk pad) Bonded Leather in lay, pedestals with 3 lockable drawers on both sides, with a built-in top-drawer pencil tray, with handles (mahogany veneer finish) desk: 1800mm (l) x 950mm (w) x 800mm(h).","Each",2,null,{"$f":"E238*F238","v":{"v":0,"d":"R0.00"}}]
[null,"2.2","Wall unit: 4 solid door base unit; 2 glass doors and open shelves top unit in dark mahogany veneer 1800l x 420d x 2000h.","Each",2,null,{"v":0,"d":"R0.00"}]
[null,"2.3","Four drawer lockable wooden cabinet in mahogany veneers, 465mm w x 600mm d x 1300mm h, 465mm w x 600mm d x 1300mm h. ","Each",2,null,{"v":0,"d":"R0.00"}]
[null,"2.4","Oak veneer hat and coat stand (380 (W) x 380 (D) x 1750 (H)).","Each",2,null,{"v":0,"d":"R0.00"}]
[]
[null,"3.","MAINTENANCE AND DV OFFICE"]
[null,"3.1","330 Compartment pigeon hole – wood oak veneer [Compartments – 5 (w) 6 (h)].","Each",2,null,{"$f":"E244*F244","v":{"v":0,"d":"R0.00"}}]
[]
[null,"17.","MAGISTRATE COURT TAUNG                          "]
[null,"1.","DOMESTIC VIOLENCE"]
[null,"1.1","High back ergonomic chair with adjustable lumbar support, Black mesh fabric, Adjustable seat and armrest, Five star base and gas height adjustment","Each",1,null,{"$f":"E248*F248","v":{"v":0,"d":"R0.00"}}]
[]
[null,"2.","COURTROOM (A, B, C & REGIONAL COURT)"]
[null,"2.1","High back ergonomic chair with adjustable lumbar support with headrest, Black mesh fabric, Adjustable seat and armrest, Five-star base and gas height adjustment","Each",4,null,{"$f":"E251*F251","v":{"v":0,"d":"R0.00"}}]
[null,"2.2","Medium back fabric chair, (black) with armrest, swivel and tilt with pu castor","Each",19,null,{"$f":"E252*F252","v":{"v":0,"d":"R0.00"}}]
[]
[null,"3.","VARIOUS SECTIONS "]
[null,"3.1","Four drawer lockable steel cabinets, 465mm w x 600mm d x 1300mm h.","Each",8,null,{"$f":"E255*F255","v":{"v":0,"d":"R0.00"}}]
[]
[null,"4.","COURT MANAGER OFFICE"]
[null,"4.1","Four drawer lockable steel cabinets, 465mm w x 600mm d x 1300mm h.","Each",1,null,{"$f":"E258*F258","v":{"v":0,"d":"R0.00"}}]
[null,"4.2","30 Compartment pigeon hole – wood oak veneer 900mm (width) x 360mm (depth) x 1500mm (height).","Each",1,null,{"$f":"E259*F259","v":{"v":0,"d":"R0.00"}}]
[]
["18.","18.","MAGISTRATE COURT BAFOKENG"]
[null,"1.","MAGISTRATE OFFICES"]
[null,"1.1","L-shaped executive desk with (desk pad) Bonded Leather in lay, pedestals with 3 lockable drawers on both sides, with a built-in top-drawer pencil tray, with handles (mahogany veneer finish) desk: 1800mm (l) x 950mm (w) x 800mm(h).","Each",2,null,{"$f":"E263*F263","v":{"v":0,"d":"R0.00"}}]
[null,"1.2","High back ergonomic chair with adjustable lumbar support with headrest, Black mesh fabric, Adjustable seat and armrest, Five-star base and gas height adjustment.","Each",2,null,{"v":0,"d":"R0.00"}]
[null,"1.3","Four drawer lockable wooden cabinet in mahogany veneers, 465mm w x 600mm d x 1300mm h, 465mm w x 600mm d x 1300mm h. ","Each",2,null,{"v":0,"d":"R0.00"}]
[null,"1.4","Oak veneer hat and coat stand (380 (W) x 380 (D) x 1750 (H).","Each",2,null,{"v":0,"d":"R0.00"}]
[null,"1.5","Wall unit: 4 solid door base unit; 2 glass doors and open shelves top unit in dark mahogany veneer 1800l x 420d x 2000h.","Each",2,null,{"v":0,"d":"R0.00"}]
[null,"1.6","Visitors ergonomic chair, Black mesh fabric, with armrest.","Each",6,null,{"v":0,"d":"R0.00"}]
[]
[null,"2.","COURT MANAGER"]
[null,"2.1","Office desk with three lockable drawers on both sides in mahogany veneer1800mml x 950mm w x800mm h. ","Each",1,null,{"$f":"E271*F271","v":{"v":0,"d":"R0.00"}}]
[null,"2.2","Visitors ergonomic chair, Black mesh fabric, with armrest","Each",3,null,{"v":0,"d":"R0.00"}]
[null,"2.3","Four drawer lockable wooden cabinet in mahogany veneers, 465mm w x 600mm d x 1300mm h, 465mm w x 600mm d x 1300mm h.  ","Each",1,null,{"v":0,"d":"R0.00"}]
[]
[null,"3.","ADMIN OFFICERS "]
[null,"3.1","Office desk with three lockable drawers on both sides in mahogany veneer1800mml x 950mm w x800mm h. ","Each",1,null,{"$f":"E276*F276","v":{"v":0,"d":"R0.00"}}]
[null,"3.2","Visitors ergonomic chair, Black mesh fabric, with armrest.","Each",2,null,{"v":0,"d":"R0.00"}]
[null,"3.3","Four drawer lockable steel cabinets, 465mm w x 600mm d x 1300mm h.","Each",1,null,{"v":0,"d":"R0.00"}]
[]
["19.","19.","MAGISTRATE COURT KGOMOTSO"]
[null,"1.","PROCUREMENT & MAINTENANCE & DOMESTIC VIOLENCE "]
[null,"1.1","Office desk in mahogany veneer with three lockable drawers on one side. 150mm (l) x 75mm (w) x 71 mm (h). ","Each",3,null,{"$f":"E282*F282","v":{"v":0,"d":"R0.00"}}]
[]
[null,"2.","PROCUREMENT"]
[null,"2.1","High back ergonomic chair with adjustable lumbar support, Black mesh fabric, Adjustable seat and armrest, Five star base and gas height adjustment","Each",1,null,{"$f":"E285*F285","v":{"v":0,"d":"R0.00"}}]
[null,"2.2","Visitors ergonomic chair, Black mesh fabric, with armrest","Each",2,null,{"v":0,"d":"R0.00"}]
[]
[null,"3.","CASH HALL"]
[null,"3.1","Standard Mobile pedestal 3-drawers with pull-out pen & pencil tray, central locking- oak veneer 400(W) x 550(D) x 590 (H).","Each",2,null,{"$f":"E289*F289","v":{"v":0,"d":"R0.00"}}]
[]
[null,"4.","WAITING AREA"]
[null,"4.1","4-seater heavy duty perforated steel bench (with back) (silver).   ","Each",2,null,{"$f":"E292*F292","v":{"v":0,"d":"R0.00"}}]
[]
[null,"5.","COURTROOM "]
[null,"5.1","High back ergonomic chair with adjustable lumbar support with headrest, Black mesh fabric, Adjustable seat and armrest, Five-star base and gas height adjustment","Each",1,null,{"$f":"E295*F295","v":{"v":0,"d":"R0.00"}}]
[]
[null,"6.","PROCUREMENT & CASH HALL & BOARDROOM "]
[null,"6.1","Free standing credenza in oak veneer – sliding door 900w x 550D x 700H, lockable and includes shelf.  ","Each",4,null,{"$f":"E298*F298","v":{"v":0,"d":"R0.00"}}]
[]
[null,"7.","BOARDROOM"]
[null,"7.1","10-Seater boardroom table, rectangular in mahogany veneer, 3500mm (l) x 2500mm (w) x 780 mm (h) with 38mm top).","Each",1,null,{"$f":"E301*F301","v":{"v":0,"d":"R0.00"}}]
[]
["20.","20.","MAGISTRATE COURT WOLMARANSTAAD"]
[null,"1.","VARIOUS OFFICES (ADMIN CLERKS AND INTERPRETER)"]
[null,"1.1","High back ergonomic chair with adjustable lumbar support, Black mesh fabric, Adjustable seat and armrest, Five star base and gas height adjustment.","Each",16,null,{"$f":"E305*F305","v":{"v":0,"d":"R0.00"}}]
[]
[null,"2.","COURT MANAGER"]
[null,"2.1","High back ergonomic chair with adjustable lumbar support, Black mesh fabric, Adjustable seat and armrest, Five star base and gas height adjustment.","Each",1,null,{"$f":"E308*F308","v":{"v":0,"d":"R0.00"}}]
[null,"2.2","Visitors ergonomic chair, Black mesh fabric, with armrest.","Each",2,null,{"v":0,"d":"R0.00"}]
[]
[null,"3.","MAGISTRATE (NTLATLENG)"]
[null,"3.1","High back ergonomic chair with adjustable lumbar support with headrest, Black mesh fabric, Adjustable seat and armrest, Five-star base and gas height adjustment (for the court room and office).","Each",2,null,{"$f":"E312*F312","v":{"v":0,"d":"R0.00"}}]
[null,"3.2","Visitors ergonomic chair, Black mesh fabric, with armrest.","Each",2,null,{"v":0,"d":"R0.00"}]
[]
[null,"4.","MAGISTRATE (KHAN)"]
[null,"4.1","High back ergonomic chair with adjustable lumbar support with headrest, Black mesh fabric, Adjustable seat and armrest, Five-star base and gas height adjustment.","Each",1,null,{"$f":"E316*F316","v":{"v":0,"d":"R0.00"}}]
[null,"4.2","Visitors ergonomic chair, Black mesh fabric, with armrest.","Each",2,null,{"v":0,"d":"R0.00"}]
[]
[null,"5.","MAGISTRATE (VAN DER WALT)"]
[null,"5.1","High back ergonomic chair with adjustable lumbar support with headrest, Black mesh fabric, Adjustable seat and armrest, Five-star base and gas height adjustment (for the court room and office).","Each",2,null,{"$f":"E320*F320","v":{"v":0,"d":"R0.00"}}]
[null,"5.2","Visitors ergonomic chair, Black mesh fabric, with armrest.","Each",2,null,{"$f":"E321*F321","v":{"v":0,"d":"R0.00"}}]
[]
[null,"6.","MAGISTRATE (MELODI)"]
[null,"6.1","High back ergonomic chair with adjustable lumbar support with headrest, Black mesh fabric, Adjustable seat and armrest, Five-star base and gas height adjustment (for the court room and office).","Each",2,null,{"$f":"E324*F324","v":{"v":0,"d":"R0.00"}}]
[null,"6.2","Visitors ergonomic chair, Black mesh fabric, with armrest.","Each",1,null,{"v":0,"d":"R0.00"}]
[]
[null,"7.","COURT ROOMS"]
[null,"7.1","Draughtsman’s chair, swivel and tilt/ height adjustable in hydrophobic fabric (black) with Bonded Leather padded armrest and twin wheels castor 120 kg weight capacity.","Each",3,null,{"$f":"E328*F328","v":{"v":0,"d":"R0.00"}}]
[]
["21.","21.","LEEUDORINSTAAD PERIODICAL COURT"]
[null,"1.","COURT ROOM"]
[null,"1.1","High back ergonomic chair with adjustable lumbar support, Black mesh fabric, Adjustable seat and armrest, Five star base and gas height adjustment.","Each",1,null,{"$f":"E332*F332","v":{"v":0,"d":"R0.00"}}]
[null,"1.2","High back ergonomic chair with adjustable lumbar support with headrest, Black mesh fabric, Adjustable seat and armrest, Five-star base and gas height adjustment.","Each",1,null,{"v":0,"d":"R0.00"}]
[null,"1.3","Visitors ergonomic chair, Black mesh fabric, with armrest.","Each",2,null,{"v":0,"d":"R0.00"}]
[null,"1.4","Medium back fabric chair, (black) with armrest, swivel and tilt with pu castor. ","Each",9,null,{"v":0,"d":"R0.00"}]
[]
["22.","22.","MAKWASSIE PERIODICAL COURT"]
[null,"1.","COURT ROOM"]
[null,"1.1","High back ergonomic chair with adjustable lumbar support, Black mesh fabric, Adjustable seat and armrest, Five star base and gas height adjustment.","Each",1,null,{"$f":"E339*F339","v":{"v":0,"d":"R0.00"}}]
[null,"1.2","High back ergonomic chair with adjustable lumbar support, Black mesh fabric, Adjustable seat and armrest, Five star base and gas height adjustment.","Each",1,null,{"v":0,"d":"R0.00"}]
[null,"1.3","Medium back fabric chair, (black) with armrest, swivel and tilt with pu castor.","Each",8,null,{"v":0,"d":"R0.00"}]
[]
[null,"23.","MAGISTRATE COURT CHRISTIANA"]
[null,"1.","MAGISTRATE"]
[null,"1.1","High back ergonomic chair with adjustable lumbar support with headrest, Black mesh fabric, Adjustable seat and armrest, Five-star base and gas height adjustment.","Each",2,null,{"$f":"E345*F345","v":{"v":0,"d":"R0.00"}}]
[]
[null,"2.","MAGISTRATE"]
[null,"2.1","High back ergonomic chair with adjustable lumbar support with headrest, Black mesh fabric, Adjustable seat and armrest, Five-star base and gas height adjustment.","Each",1,null,{"$f":"E348*F348","v":{"v":0,"d":"R0.00"}}]
[]
[null,"3.","OFFICE MANAGER"]
[null,"3.1","4-Sseater heavy duty perforated steel bench with back (silver).   ","Each",10,null,{"$f":"E351*F351","v":{"v":0,"d":"R0.00"}}]
[]
[null,"4.","COURT ROOMS"]
[null,"4.1","Court upright standing podium in oak veneer 1085mm(h) x 65mm (w) 500mm (l).","Each",4,null,{"$f":"E354*F354","v":{"v":0,"d":"R0.00"}}]
[]
[null,"5.","COURT ROOMS"]
[null,"5.1","Wooden Flag stand indoor with a round base – oak veneer: Pole Size: 2500mm high x 34mm diameter.","Each",2,null,{"$f":"E357*F357","v":{"v":0,"d":"R0.00"}}]
[]
[null,"6.","RC CIRCUIT MAGISTRATE"]
[null,"6.1","L-shaped executive desk with (desk pad) Bonded Leather inlay, pedestals with 3 lockable drawers on both sides, with a built-in top-drawer pencil tray, with handles (mahogany veneer finish) desk: 1800 (l) x 950 (w) x 800(h). ","Each",1,null,{"$f":"E360*F360","v":{"v":0,"d":"R0.00"}}]
[null,"6.2","Four drawer lockable wooden cabinet in mahogany veneers, 465mm w x 600mm d x 1300mm h, 465mm w x 600mm d x 1300mm h. ","Each",1,null,{"v":0,"d":"R0.00"}]
[null,"6.3","Wall unit: 4 solid door base unit; 2 glass doors and open shelves top unit in dark mahogany veneer 1800l x 420d x 2000h.","Each",1,null,{"v":0,"d":"R0.00"}]
[null,"6.4","Visitors ergonomic chair, Black mesh fabric, with armrest.","Each",3,null,{"v":0,"d":"R0.00"}]
[null,"6.5","High back ergonomic chair with adjustable lumbar support with headrest, Black mesh fabric, Adjustable seat and armrest, Five-star base and gas height adjustment.","Each",1,null,{"$f":"E364*F364","v":{"v":0,"d":"R0.00"}}]
[null,"6.6","Oak veneer hat and coat stand (380 (W) x 380 (D) x 1750 (H).","Each",1,null,{"v":0,"d":"R0.00"}]
[]
["24.","24.","MAGISTRATE COURT KLERKSDORP"]
[null,"1.","MAGISTRATES"]
[null,"1.1","L-shaped executive desk with (desk pad) Bonded Leather inlay, pedestals with 3 lockable drawers on both sides, with a built-in top-drawer pencil tray, with handles (mahogany veneer finish) desk: 1800 (l) x 950 (w) x 800(h). ","Each",3,null,{"v":0,"d":"R0.00"}]
[null,"1.2","Four drawer lockable wooden cabinet in mahogany veneers, 465mm w x 600mm d x 1300mm h, 465mm w x 600mm d x 1300mm h.","Each",2,null,{"v":0,"d":"R0.00"}]
[null,"1.3","Wall unit: 4 solid door base unit; 2 glass doors and open shelves top unit in dark mahogany veneer 1800l x 420d x 2000h.","Each",2,null,{"$f":"E371*F371","v":{"v":0,"d":"R0.00"}}]
[null,"1.4","Visitors ergonomic chair, Black mesh fabric, with armrest.","Each",6,null,{"v":0,"d":"R0.00"}]
[null,"1.5","High back ergonomic chair with adjustable lumbar support with headrest, Black mesh fabric, Adjustable seat and armrest, Five-star base and gas height adjustment.","Each",3,null,{"v":0,"d":"R0.00"}]
[null,"1.6","Oak veneer hat and coat stand (380 (W) x 380 (D) x 1750 (H).","Each",2,null,{"v":0,"d":"R0.00"}]
[]
[null,"2.","MAINTENANCE SECTION"]
[null,"2.1","Four drawer lockable steel cabinets,465mm w x 600mm d x 1300mm h.","Each",6,null,{"$f":"E377*F377","v":{"v":0,"d":"R0.00"}}]
[]
["25.","25.","MAGISTRATE COURT MANKWE"]
[null,"1.","COURT MANAGER"]
[null,"1.1","l Combination desk with four lockable drawers in oak veneer. 1800 (l) x 950 (w) x 800(h).","Each",1,null,{"$f":"E381*F381","v":{"v":0,"d":"R0.00"}}]
[]
[null,"2.","VARIOUS OFFICES"]
[null,"2.1","Office desk in oak veneer with three lockable drawers on one side. 150mm (l) x 75mm (w) x 71 mm (h). ","Each",9,null,{"$f":"E384*F384","v":{"v":0,"d":"R0.00"}}]
[]
["26.","26.","MAGISTRATE COURT POTCHEFSTROOM"]
[null,"1.","MAGISTRATE OFFICES"]
[null,"1.1","L-shaped executive desk with (desk pad) Bonded Leather in lay, pedestals with 3 lockable drawers on both sides, with a built-in top-drawer pencil tray, with handles (mahogany veneer finish) desk: 1800mm (l) x 950mm (w) x 800mm(h).","Each",9,null,{"$f":"E388*F388","v":{"v":0,"d":"R0.00"}}]
[null,"1.2","High back ergonomic chair with adjustable lumbar support with headrest, Black mesh fabric, Adjustable seat and armrest, Five-star base and gas height adjustment.","Each",9,null,{"v":0,"d":"R0.00"}]
[null,"1.3","Four drawer lockable wooden cabinet in mahogany veneers, 465mm w x 600mm d x 1300mm h, 465mm w x 600mm d x 1300mm h. ","Each",9,null,{"v":0,"d":"R0.00"}]
[null,"1.4","Oak veneer hat and coat stand (380 (W) x 380 (D) x 1750 (H).","Each",9,null,{"v":0,"d":"R0.00"}]
[null,"1.5","Wall unit: 4 solid door base unit; 2 glass doors and open shelves top unit in dark mahogany veneer 1800l x 420d x 2000h.","Each",9,null,{"v":0,"d":"R0.00"}]
[null,"1.6","Visitors ergonomic chair, Black mesh fabric, with armrest.","Each",27,null,{"v":0,"d":"R0.00"}]
[]
[null,"2.","COURTROOMS  (A,B,C,D,E,F,G & H)"]
[null,"2.1","Draughtsman’s chair, (interpreter) swivel and tilt/ height adjustable in durable fabric with Bonded Leather padded armrest and twin wheels castor 120 kg weight capacity. (black).","Each",9,null,{"$f":"E396*F396","v":{"v":0,"d":"R0.00"}}]
[null,"2.2","Medium back fabric chair, (black) with armrest, swivel and tilt with pu castor.","Each",65,null,{"v":0,"d":"R0.00"}]
[null,"2.3","High back ergonomic chair with adjustable lumbar support with headrest, Black mesh fabric, Adjustable seat and armrest, Five-star base and gas height adjustment","Each",9,null,{"v":0,"d":"R0.00"}]
[]
[null,"3.","COURT MANAGER"]
[null,"3.1","Executive desk with Bonded Leather inlay desk pad with single desk height pedestal with four lockable drawers in mahogany veneer. 1800mm (l) x 950 mm (w) x800 mm (h). ","Each",1,null,{"$f":"E401*F401","v":{"v":0,"d":"R0.00"}}]
[null,"3.2","Wall unit: 4 solid door base unit; 2 glass doors and open shelves top unit in dark mahogany veneer 1800l x 420d x 2000h","Each",1,null,{"v":0,"d":"R0.00"}]
[null,"3.3","High back ergonomic chair with adjustable lumbar support, Black mesh fabric, Adjustable seat and armrest, Five star base and gas height adjustment","Each",1,null,{"v":0,"d":"R0.00"}]
[null,"3.4","Visitors ergonomic chair, Black mesh fabric, with armrest","Each",3,null,{"v":0,"d":"R0.00"}]
[]
[null,"4.","VARIOUS SECTIONS (ADMIN CLERKS)"]
[null,"4.1","Office desk in oak veneer with three lockable drawers on one side. 150mm (l) x 75mm (w) x 71 mm (h). ","Each",32,null,{"$f":"E407*F407","v":{"v":0,"d":"R0.00"}}]
[]
[null,"5.","CASH HALL"]
[null,"5.1","Draughtsman’s chair, (interpreter) High back ergonomic chair with adjustable lumbar support , Black mesh fabric, Adjustable seat and armrest, Five star base and gas height adjustment.","Each",3,null,{"$f":"E410*F410","v":{"v":0,"d":"R0.00"}}]
[null,"5.2","6-Seater cluster desk 1600mm (l) x 1200mm (w) x 800mm (h) with pencil tray, two standard drawers and one deep filer on each side of the desk. ","Each",1,null,{"v":0,"d":"R0.00"}]
[]
[null,"6.","VARIOUS SECTIONS (ADMIN CLERKS)"]
[null,"6.1","High back ergonomic chair with adjustable lumbar support, Black mesh fabric, Adjustable seat and armrest, Five star base and gas height adjustment.","Each",14,null,{"$f":"E414*F414","v":{"v":0,"d":"R0.00"}}]
[]
[null,"7.","VARIOUS SECTIONS (ADMIN CLERKS)"]
[null,"7.1","Four drawer lockable steel cabinets, 465(W) x 600(D) x 1300 (H).","Each",8,null,{"v":0,"d":"R0.00"}]
[null,null,"TOTAL BID PRICE  (EXCL VAT)",{"$nulls":3},{"$f":"SUBTOTAL(9,G16:G417)","v":{"v":0,"d":"R0.00"}}]
[null,null,"VAT (@15%)",{"$nulls":3},{"$f":"G418*0.15","v":{"v":0,"d":"R0.00"}}]
[null,null,"TOTAL  BID PRICE (INCL VAT)",{"$nulls":3},{"$f":"G418+G419","v":{"v":0,"d":"R0.00"}}]
[]
[]
[null,null,"I, the bidder, confirm that the price(s) and rate(s) quoted cover all the goods and/or works specified in the bidding documents; that the price(s) or rate(s) cover all my obligations and I accept that any mistakes regarding price(s), rate(s) or calculations will be at my own risk.\n[Note: First convert to PDF, then add signature]"]
[{"$nulls":3},"Name (above)",null,"Capacity"]
[]
[{"$nulls":3},"Signature (above)",null,"Date"]